fUST/lending_fUST_20250611
["ID","MTS","AMOUNT","RATE_DAILY","PERIOD"]
[365290322,1749582636862,-460.0,0.00021903,4]
[365290323,1749582636872,-460.0,0.00021903,4]
[365290324,1749582636882,-280.0,0.00021903,4]
[365290325,1749582636891,-500.0,0.00021903,2]
[365290326,1749582636900,-500.0,0.00021903,2]
[365290327,1749582636910,-500.0,0.00021903,2]
[365290328,1749582636919,-451.15762798,0.00021903,2]
[365290329,1749582636928,-500.0,0.00021903,2]
[365290330,1749582636938,-247.5882973,0.00021903,2]
[365290331,1749582636947,-730.35,0.00021903,4]
[365290332,1749582636956,-300.0,0.00021903,4]
[365290333,1749582636966,-380.12,0.00021903,4]
[365290334,1749582636975,-460.0,0.00021903,4]
[365290335,1749582636984,-460.0,0.00021903,4]
[365290336,1749582636994,-440.0,0.00021903,4]
[365290337,1749582637002,-460.0,0.00021903,4]
[365290338,1749582637013,-460.0,0.00021903,4]
[365290339,1749582637022,-380.0,0.00021903,4]
[365290340,1749582637031,-460.0,0.00021903,4]
[365290341,1749582637040,-420.0,0.00021903,4]
[365290342,1749582637050,-460.0,0.00021903,4]
[365290343,1749582637150,-460.0,0.00021904,4]
[365290344,1749582637161,-460.0,0.00021904,4]
[365290345,1749582637170,-935.39,0.00021904,4]
[365290346,1749582637179,-440.0,0.00021904,4]
[365290347,1749582637189,-460.0,0.00021904,4]
[365290348,1749582637198,-1594.92,0.00021904,4]
[365290349,1749582637208,-956.23,0.00021904,4]
[365290350,1749582637218,-460.0,0.00021904,4]
[365290351,1749582637227,-460.0,0.00021904,4]
[365290352,1749582637237,-500.0,0.00021904,4]
[365290353,1749582637246,-300.0,0.00021904,4]
[365290354,1749582637255,-514.04,0.00021904,4]
[365290355,1749582637266,-460.0,0.00021904,4]
[365290356,1749582637276,-460.0,0.00021904,4]
[365290357,1749582637286,-988.0483064,0.00021918,7]
[365290358,1749582637295,-500.0,0.00021921,2]
[365290359,1749582637304,-579.6233432,0.00021921,2]
[365290360,1749582637313,-500.0,0.00021921,2]
[365290361,1749582637322,-500.0,0.00021921,2]
[365290362,1749582637331,-500.0,0.00021921,2]
[365290363,1749582637340,-500.09324563,0.00021921,2]
[365290364,1749582637350,-500.74644186,0.00021969,2]
[365290365,1749582637359,-584.18,0.00022,7]
[365290366,1749582637368,-1751.04223638,0.00022,2]
[365290367,1749582637377,-171.0,0.00022,2]
[365290368,1749582637387,-477.4188482,0.00022003,6]
[365290369,1749582637396,-477.4188482,0.00022107,6]
[365290370,1749582637405,-1071.55,0.00022176,4]
[365290371,1749582637415,-694.83,0.00022176,4]
[365290372,1749582637428,-605.44,0.00022176,4]
[365290373,1749582637437,-460.0,0.00022176,4]
[365290374,1749582637447,-397.92074179,0.00022176,4]
[365290375,1749582637457,-622.43,0.00022176,4]
[365290376,1749582637467,-766.84,0.00022176,4]
[365290377,1749582637476,-564.23,0.00022176,4]
[365290378,1749582637485,-460.0,0.00022176,4]
[365290379,1749582637495,-460.0,0.00022176,4]
[365290380,1749582637504,-460.0,0.00022176,4]
[365290381,1749582637516,-460.0,0.00022177,4]
[365290382,1749582637525,-440.0,0.00022177,4]
[365290383,1749582637534,-460.0,0.00022177,4]
[365290384,1749582637543,-460.0,0.00022177,4]
[365290385,1749582637553,-730.35,0.00022177,4]
[365290386,1749582637562,-460.0,0.00022177,4]
[365290387,1749582637571,-460.0,0.00022177,4]
[365290388,1749582637581,-360.0,0.00022177,4]
[365290389,1749582637591,-460.0,0.00022177,4]
[365290390,1749582637600,-440.0,0.00022177,4]
[365290391,1749582637610,-460.0,0.00022177,4]
[365290392,1749582637619,-460.0,0.00022178,4]
[365290393,1749582637628,-318.6292932,0.00022178,4]
[365290394,1749582637637,-935.39,0.00022178,4]
[365290395,1749582637647,-447.7138273,0.00022178,4]
[365290396,1749582637656,-1594.92,0.00022178,4]
[365290397,1749582637666,-956.23,0.00022178,4]
[365290398,1749582637675,-460.0,0.00022178,4]
[365290399,1749582637685,-460.0,0.00022178,4]
[365290400,1749582637694,-280.0,0.00022178,4]
[365290401,1749582637704,-460.0,0.00022178,4]
[365290402,1749582637714,-179.69471741,0.000222,69]
[365290403,1749582637723,-477.4188482,0.0002221,6]
[365290404,1749582637733,-477.4188482,0.00022314,7]
[365290405,1749582637742,-382.97009209,0.00022339,2]
[365290406,1749582637751,-477.4188482,0.00022417,7]
[365290407,1749582637761,-1071.55,0.0002245,4]
[365290408,1749582637770,-694.83,0.0002245,4]
[365290409,1749582637779,-605.44,0.0002245,4]
[365290410,1749582637788,-530.3,0.0002245,4]
[365290411,1749582637798,-622.43,0.0002245,4]
[365290412,1749582637807,-766.84,0.0002245,4]
[365290413,1749582637816,-564.23,0.0002245,4]
[365290414,1749582637826,-460.0,0.0002245,4]
[365290415,1749582637835,-460.0,0.0002245,4]
[365290416,1749582637845,-460.0,0.0002245,4]
[365290417,1749582637854,-355.65984197,0.00022451,4]
[365290418,1749582637864,-460.0,0.00022451,4]
[365290419,1749582637874,-460.0,0.00022451,4]
[365290420,1749582637883,-730.35,0.00022451,4]
[365290421,1749582637893,-460.0,0.00022451,4]
[365290422,1749582637902,-460.0,0.00022451,4]
[365290423,1749582637914,-460.0,0.00022451,4]
[365290424,1749582637923,-460.0,0.00022451,4]
[365290425,1749582637932,-460.0,0.00022452,4]
[365290426,1749582637942,-935.39,0.00022452,4]
[365290427,1749582637951,-1594.92,0.00022452,4]
[365290428,1749582637960,-956.23,0.00022452,4]
[365290429,1749582637970,-460.0,0.00022452,4]
[365290430,1749582637979,-460.0,0.00022452,4]
[365290431,1749582637989,-460.0,0.00022452,4]
[365290432,1749582637998,-400.0,0.00022465,4]
[365290433,1749582638007,-400.0,0.00022465,4]
[365290434,1749582638017,-333.64,0.00022465,4]
[365290435,1749582638026,-477.4188482,0.00022521,7]
[365290436,1749582638036,-10000.0,0.000226,5]
[365290437,1749582638045,-477.4188482,0.00022624,7]
[365290438,1749582638054,-20558.86658514,0.0002266,2]
[365290439,1749582638064,-3000.0,0.000227,2]
[365290440,1749582638073,-3000.0,0.0002271,2]
[365290441,1749582638082,-3000.0,0.0002272,2]
[365290442,1749582638091,-1071.55,0.00022724,4]
[365290443,1749582638100,-694.83,0.00022724,4]
[365290444,1749582638110,-605.44,0.00022724,4]
[365290445,1749582638119,-622.43,0.00022724,4]
[365290446,1749582638129,-766.84,0.00022724,4]
[365290447,1749582638139,-564.23,0.00022724,4]
[365290448,1749582638148,-440.0,0.00022724,4]
[365290450,1749582638158,-260.0,0.00022724,4]
[365290452,1749582638168,-460.0,0.00022724,4]
[365290454,1749582638177,-460.0,0.00022725,4]
[365290456,1749582638186,-460.0,0.00022725,4]
[365290458,1749582638195,-730.35,0.00022725,4]
[365290460,1749582638205,-460.0,0.00022725,4]
[365290462,1749582638214,-460.0,0.00022725,4]
[365290464,1749582638224,-460.0,0.00022725,4]
[365290467,1749582638234,-460.0,0.00022725,4]
[365290469,1749582638243,-460.0,0.00022726,4]
[365290471,1749582638267,-935.39,0.00022726,4]
[365290473,1749582638277,-1594.92,0.00022726,4]
[365290475,1749582638288,-956.23,0.00022726,4]
[365290477,1749582638298,-460.0,0.00022726,4]
[365290480,1749582638308,-460.0,0.00022726,4]
[365290482,1749582638319,-460.0,0.00022726,4]
[365290484,1749582638332,-477.4188482,0.00022728,7]
[365290486,1749582638342,-3000.0,0.0002273,2]
[365290488,1749582638353,-3000.0,0.0002274,2]
[365290490,1749582638363,-3000.0,0.0002275,2]
[365290492,1749582638373,-3000.0,0.0002276,2]
[365290494,1749582638383,-794.11166992,0.00022762,2]
[365290496,1749582638394,-3000.0,0.0002277,2]
[365290498,1749582638404,-3000.0,0.0002278,2]
[365290501,1749582638414,-3000.0,0.0002279,2]
[365290503,1749582638428,-3000.0,0.000228,2]
[365290505,1749582638438,-1199.08,0.000228,7]
[365290506,1749582638448,-3000.0,0.0002281,2]
[365290508,1749582638457,-3000.0,0.0002282,2]
[365290510,1749582638468,-4917.651493,0.0002283,2]
[365290512,1749582638478,-477.4188482,0.00022831,8]
[365290513,1749582638488,-477.4188482,0.00022934,8]
[365290514,1749582638498,-1071.55,0.00022998,4]
[365290515,1749582638507,-694.83,0.00022998,4]
[365290516,1749582638520,-605.44,0.00022998,4]
[365290518,1749582638530,-622.43,0.00022998,4]
[365290520,1749582638541,-766.84,0.00022998,4]
[365290522,1749582638550,-564.23,0.00022998,4]
[365290525,1749582638559,-460.0,0.00022998,4]
[365290526,1749582638569,-460.0,0.00022999,4]
[365290528,1749582638578,-456.81486519,0.00022999,4]
[365290530,1749582638588,-730.35,0.00022999,4]
[365290532,1749582638598,-460.0,0.00022999,4]
[365290534,1749582638607,-460.0,0.00022999,4]
[365290536,1749582638616,-460.0,0.00022999,4]
[365290538,1749582638627,-460.0,0.00022999,4]
[365290541,1749582638636,-460.0,0.00023,4]
[365290542,1749582638646,-935.39,0.00023,4]
[365290544,1749582638656,-1594.92,0.00023,4]
[365290546,1749582638666,-956.23,0.00023,4]
[365290548,1749582638676,-460.0,0.00023,4]
[365290550,1749582638685,-460.0,0.00023,4]
[365290552,1749582638695,-440.0,0.00023,4]
[365290554,1749582638706,-477.4188482,0.00023038,8]
[365290556,1749582638716,-500.0,0.00023073,2]
[365290558,1749582638725,-500.0,0.00023073,2]
[365290560,1749582638735,-506.65956259,0.00023073,2]
[365290562,1749582638745,-500.0,0.00023073,2]
[365290564,1749582638754,-500.0,0.00023073,2]
[365290566,1749582638765,-363.98479102,0.00023073,2]
[365290568,1749582638775,-500.0,0.00023073,2]
[365290570,1749582638785,-500.0,0.00023073,2]
[365290572,1749582638795,-600.0,0.00023073,2]
[365290574,1749582638804,-500.0,0.00023073,2]
[365290576,1749582638813,-500.0,0.00023073,2]
[365290578,1749582638823,-500.0,0.00023073,2]
[365290580,1749582638832,-500.0,0.00023073,2]
[365290583,1749582638842,-500.0,0.00023073,2]
[365290584,1749582638852,-514.87031705,0.00023073,2]
[365290587,1749582638862,-500.0,0.00023073,2]
[365290589,1749582638871,-500.0,0.00023073,2]
[365290591,1749582638881,-500.0,0.00023073,2]
[365290593,1749582638894,-503.40524538,0.00023073,2]
[365290595,1749582638904,-500.0,0.00023073,2]
[365290597,1749582638914,-500.0,0.00023073,2]
[365290599,1749582638924,-500.0,0.00023073,2]
[365290601,1749582638934,-4177.53372404,0.000231,2]
[365290604,1749582638943,-4824.91002568,0.000231,2]
[365290607,1749582638966,-263.07917187,0.000231,2]
[365290609,1749582638978,-636.31471314,0.000231,2]
[365290651,1749582639540,-7452.38718377,0.000231,2]
[365290652,1749582639550,-97485.9,0.000231,7]
[365290653,1749582639560,-477.4188482,0.00023141,8]
[365290654,1749582639571,-382.97009209,0.00023148,2]
[365290656,1749582639581,-420.0,0.00023162,2]
[365290671,1749582639712,-176.703382,0.00023186,9]
[365290673,1749582639729,-151.0,0.00023194,2]
[365290675,1749582639739,-207.4,0.00023194,2]
[365290677,1749582639749,-1688.0,0.00023194,2]
[365290679,1749582639758,-2500.0,0.00023194,2]
[365290681,1749582639770,-2500.0,0.00023194,2]
[365290683,1749582639779,-5000.0,0.00023194,2]
[365290685,1749582639788,-2500.0,0.00023194,2]
[365290687,1749582639798,-1099.96143606,0.00023194,2]
[365290689,1749582639807,-174.9060925,0.00023205,2]
[365290691,1749582639816,-400.0,0.00023221,2]
[365290693,1749582639825,-477.4188482,0.00023245,8]
[365290694,1749582639834,-1750.456,0.00023249,2]
[365290696,1749582639844,-1071.55,0.00023272,4]
[365290698,1749582639854,-694.83,0.00023272,4]
[365290700,1749582639863,-605.44,0.00023272,4]
[365290702,1749582639873,-622.43,0.00023272,4]
[365290705,1749582639883,-766.84,0.00023272,4]
[365290707,1749582639892,-564.23,0.00023272,4]
[365290709,1749582639902,-460.0,0.00023272,4]
[365290711,1749582639911,-460.0,0.00023273,4]
[365290713,1749582639920,-730.35,0.00023273,4]
[365290715,1749582639929,-460.0,0.00023273,4]
[365290717,1749582639939,-460.0,0.00023273,4]
[365290719,1749582639948,-460.0,0.00023273,4]
[365290720,1749582639959,-460.0,0.00023273,4]
[365290722,1749582639977,-160.0,0.00023274,2]
[365290724,1749582639986,-160.0,0.00023274,2]
[365290726,1749582639995,-160.0,0.00023274,2]
[365290729,1749582640005,-842.5625,0.00023274,2]
[365290730,1749582640016,-424.12530924,0.00023274,2]
[365290732,1749582640025,-213.1263252,0.00023274,2]
[365290735,1749582640035,-834.9046531,0.00023274,2]
[365290737,1749582640044,-460.0,0.00023274,4]
[365290739,1749582640054,-935.39,0.00023274,4]
[365290741,1749582640063,-1594.92,0.00023274,4]
[365290743,1749582640072,-956.23,0.00023274,4]
[365290745,1749582640081,-460.0,0.00023274,4]
[365290747,1749582640091,-460.0,0.00023274,4]
[365290749,1749582640100,-1593.59,0.0002329,2]
[365290751,1749582640109,-219.96597335,0.00023304,2]
[365290753,1749582640118,-477.4188482,0.00023348,9]
[365290755,1749582640127,-584.18,0.000234,7]
[365290757,1749582640137,-477.4188482,0.00023452,9]
[365290759,1749582640146,-1071.55,0.00023546,4]
[365290761,1749582640155,-694.83,0.00023546,4]
[365290763,1749582640165,-605.44,0.00023546,4]
[365290765,1749582640174,-622.43,0.00023546,4]
[365290767,1749582640184,-766.84,0.00023546,4]
[365290769,1749582640195,-564.23,0.00023546,4]
[365290771,1749582640206,-222.53,0.00023546,4]
[365290773,1749582640215,-460.0,0.00023547,4]
[365290775,1749582640224,-730.35,0.00023547,4]
[365290777,1749582640234,-460.0,0.00023547,4]
[365290779,1749582640253,-460.0,0.00023547,4]
[365290781,1749582640262,-460.0,0.00023547,4]
[365290783,1749582640271,-460.0,0.00023547,4]
[365290785,1749582640281,-545.24,0.00023548,4]
[365290787,1749582640290,-935.39,0.00023548,4]
[365290789,1749582640299,-1594.92,0.00023548,4]
[365290791,1749582640309,-956.23,0.00023548,4]
[365290793,1749582640318,-460.0,0.00023548,4]
[365290795,1749582640327,-460.0,0.00023548,4]
[365290797,1749582640337,-477.4188482,0.00023555,9]
[365290799,1749582640346,-500.0,0.00023616,4]
[365290801,1749582640355,-151.0,0.00023616,4]
[365290803,1749582640364,-1000.0,0.00023621,2]
[365290805,1749582640374,-1200.0,0.00023621,2]
[365290807,1749582640383,-1000.0,0.00023621,2]
[365290809,1749582640393,-484.15155869,0.00023621,2]
[365290811,1749582640402,-500.0,0.00023621,2]
[365290813,1749582640412,-502.03517044,0.00023621,2]
[365290815,1749582640425,-1000.0,0.00023621,2]
[365290817,1749582640434,-500.0,0.00023643,4]
[365290819,1749582640443,-477.4188482,0.00023659,9]
[365290821,1749582640453,-500.0,0.00023671,4]
[365290823,1749582640464,-20558.86658512,0.00023717,2]
[365290825,1749582640473,-5000.0,0.00023742,2]
[365290828,1749582640483,-477.4188482,0.00023762,9]
[365290830,1749582640493,-1071.55,0.0002382,4]
[365290831,1749582640503,-694.83,0.0002382,4]
[365290834,1749582640513,-605.44,0.0002382,4]
[365290836,1749582640523,-622.43,0.0002382,4]
[365290838,1749582640532,-766.84,0.0002382,4]
[365290840,1749582640542,-564.23,0.0002382,4]
[365290842,1749582640552,-460.0,0.00023821,4]
[365290844,1749582640561,-730.35,0.00023821,4]
[365290846,1749582640570,-460.0,0.00023821,4]
[365290848,1749582640581,-460.0,0.00023821,4]
[365290850,1749582640590,-460.0,0.00023821,4]
[365290852,1749582640599,-460.0,0.00023821,4]
[365290854,1749582640609,-935.39,0.00023822,4]
[365290856,1749582640619,-1594.92,0.00023822,4]
[365290858,1749582640629,-956.23,0.00023822,4]
[365290860,1749582640639,-460.0,0.00023822,4]
[365290862,1749582640649,-460.0,0.00023822,4]
[365290864,1749582640659,-477.4188482,0.00023866,10]
[365290866,1749582640669,-1199.08,0.000239,7]
[365290868,1749582640679,-382.97009209,0.00023956,2]
[365290870,1749582640689,-477.4188482,0.00023969,10]
[365290872,1749582640698,-1323.04,0.00024,2]
[365290874,1749582640708,-151.0,0.00024016,7]
[365290876,1749582640718,-158.7504224,0.00024027,2]
[365290878,1749582640727,-306.0,0.00024027,2]
[365290880,1749582640737,-158.7504224,0.00024027,2]
[365290882,1749582640747,-158.7504224,0.00024027,2]
[365290884,1749582640756,-443.72833664,0.00024045,2]
[365290886,1749582640767,-153.0,0.00024055,2]
[365290888,1749582640777,-153.0,0.00024055,2]
[365290890,1749582640788,-153.0,0.00024055,2]
[365290892,1749582640798,-477.4188482,0.00024072,10]
[365290894,1749582640807,-1071.55,0.00024094,4]
[365290896,1749582640819,-694.83,0.00024094,4]
[365290899,1749582640833,-605.44,0.00024094,4]
[365290901,1749582640847,-622.43,0.00024094,4]
[365290904,1749582640860,-766.84,0.00024094,4]
[365290906,1749582640874,-564.23,0.00024094,4]
[365290908,1749582640886,-460.0,0.00024095,4]
[365290910,1749582640897,-730.35,0.00024095,4]
[365290913,1749582640911,-460.0,0.00024095,4]
[365290915,1749582640924,-460.0,0.00024095,4]
[365290918,1749582640937,-460.0,0.00024095,4]
[365290920,1749582640950,-460.0,0.00024095,4]
[365290922,1749582640963,-935.39,0.00024096,4]
[365290924,1749582640977,-1594.92,0.00024096,4]
[365290926,1749582640990,-956.23,0.00024096,4]
[365290929,1749582641002,-151.0,0.00024096,7]
[365290931,1749582641015,-460.0,0.00024096,4]
[365290933,1749582641027,-460.0,0.00024096,4]
[365290934,1749582641040,-1500.0,0.00024168,2]
[365290935,1749582641052,-600.0,0.00024168,2]
[365290936,1749582641063,-1026.26156429,0.00024168,2]
[365290937,1749582641075,-477.4188482,0.00024176,10]
[365290938,1749582641087,-10000.0,0.000242,5]
[365290940,1749582641098,-151.0,0.00024229,7]
[365290942,1749582641109,-477.4188482,0.00024279,10]
[365290944,1749582641122,-5000.0,0.0002429,2]
[365290947,1749582641134,-97485.9,0.000243,7]
[365290948,1749582641145,-39012.52,0.000243,2]
[365290950,1749582641157,-843.247353,0.00024367,3]
[365290953,1749582641168,-1071.55,0.00024368,4]
[365290955,1749582641179,-694.83,0.00024368,4]
[365290957,1749582641191,-605.44,0.00024368,4]
[365290959,1749582641202,-622.43,0.00024368,4]
[365290961,1749582641213,-766.84,0.00024368,4]
[365290964,1749582641226,-564.23,0.00024368,4]
[365290966,1749582641238,-460.0,0.00024369,4]
[365290969,1749582641250,-730.35,0.00024369,4]
[365290971,1749582641263,-460.0,0.00024369,4]
[365290973,1749582641274,-460.0,0.00024369,4]
[365290975,1749582641287,-354.61585153,0.00024369,4]
[365290978,1749582641299,-460.0,0.00024369,4]
[365290980,1749582641312,-935.39,0.0002437,4]
[365290983,1749582641325,-1594.92,0.0002437,4]
[365290985,1749582641336,-956.23,0.0002437,4]
[365290987,1749582641346,-460.0,0.0002437,4]
[365290989,1749582641356,-460.0,0.0002437,4]
[365290991,1749582641366,-477.4188482,0.00024383,11]
[365290993,1749582641377,-1207.0,0.00024414,2]
[365290995,1749582641389,-1207.0,0.00024415,2]
[365290998,1749582641401,-151.0,0.00024441,7]
[365291000,1749582641413,-363.0,0.00024455,2]
[365291002,1749582641427,-395.0,0.00024468,2]
[365291004,1749582641437,-477.4188482,0.00024486,11]
[365291006,1749582641446,-216.675,0.00024552,2]
[365291008,1749582641457,-963.0,0.00024552,2]
[365291010,1749582641470,-653.0,0.00024552,2]
[365291013,1749582641482,-2160.0,0.00024552,2]
[365291015,1749582641494,-405.0,0.00024552,2]
[365291017,1749582641506,-215.0738,0.00024563,2]
[365291019,1749582641518,-716.73,0.00024585,4]
[365291021,1749582641528,-477.4188482,0.0002459,11]
[365291023,1749582641538,-2200.0,0.0002463,2]
[365291026,1749582641549,-1071.55,0.00024642,4]
[365291028,1749582641564,-694.83,0.00024642,4]
[365291030,1749582641575,-605.44,0.00024642,4]
[365291033,1749582641586,-622.43,0.00024642,4]
[365291035,1749582641597,-766.84,0.00024642,4]
[365291037,1749582641608,-564.23,0.00024642,4]
[365291039,1749582641618,-168.0,0.00024643,2]
[365291041,1749582641630,-460.0,0.00024643,4]
[365291043,1749582641641,-730.35,0.00024643,4]
[365291046,1749582641652,-460.0,0.00024643,4]
[365291048,1749582641663,-460.0,0.00024643,4]
[365291050,1749582641674,-460.0,0.00024643,4]
[365291052,1749582641685,-935.39,0.00024644,4]
[365291055,1749582641699,-1594.92,0.00024644,4]
[365291057,1749582641710,-956.23,0.00024644,4]
[365291059,1749582641722,-460.0,0.00024644,4]
[365291061,1749582641732,-460.0,0.00024644,4]
[365291064,1749582641744,-5010.53635403,0.0002465,20]
[365291066,1749582641756,-151.0,0.00024653,7]
[365291068,1749582641768,-477.4188482,0.00024693,11]
[365291070,1749582641779,-197.0,0.00024697,2]
[365291072,1749582641790,-584.18,0.000247,7]
[365291074,1749582641801,-1000.0,0.000247,2]
[365291076,1749582641812,-500.0,0.00024716,2]
[365291077,1749582641823,-1090.0,0.00024744,2]
[365291079,1749582641835,-1260.29978069,0.00024749,16]
[365291082,1749582641846,-382.97009209,0.00024765,2]
[365291084,1749582641856,-1090.0,0.00024773,2]
[365291086,1749582641867,-20558.86658512,0.00024774,2]
[365291087,1749582641878,-716.73,0.00024785,7]
[365291089,1749582641889,-477.4188482,0.00024797,11]
[365291091,1749582641901,-2000.0,0.000248,2]
[365291093,1749582641911,-2000.0,0.000248,2]
[365291095,1749582641922,-2000.0,0.000248,2]
[365291097,1749582641935,-706.50337817,0.000248,120]
[365291099,1749582641957,-280.0,0.00024837,2]
[365291101,1749582641978,-5000.0,0.00024838,2]
[365291103,1749582641991,-500.0,0.00024859,9]
[365291105,1749582642000,-4346.44886923,0.00024862,2]
[365291106,1749582642009,-500.0,0.00024865,2]
[365291108,1749582642020,-500.0,0.00024865,20]
[365291110,1749582642029,-500.0,0.00024865,20]
[365291112,1749582642039,-500.0,0.00024865,20]
[365291114,1749582642048,-500.0,0.00024865,20]
[365291116,1749582642057,-500.0,0.00024865,20]
[365291118,1749582642072,-500.0,0.00024865,20]
[365291121,1749582642087,-500.0,0.00024865,20]
[365291122,1749582642096,-500.0,0.00024865,20]
[365291124,1749582642106,-500.0,0.00024865,20]
[365291126,1749582642116,-500.0,0.00024865,20]
[365291128,1749582642126,-500.0,0.00024865,20]
[365291130,1749582642135,-500.0,0.00024865,20]
[365291132,1749582642145,-500.0,0.00024865,20]
[365291134,1749582642155,-500.0,0.00024865,20]
[365291135,1749582642164,-500.0,0.00024865,20]
[365291137,1749582642174,-500.0,0.00024865,20]
[365291155,1749582642364,-500.0,0.00024865,20]
[365291156,1749582642375,-500.0,0.00024865,20]
[365291158,1749582642385,-500.0,0.00024865,20]
[365291160,1749582642394,-556.41167221,0.00024865,20]
[365291161,1749582642404,-151.0,0.00024865,15]
[365291163,1749582642413,-210.0,0.00024866,60]
[365291165,1749582642423,-613.4854085,0.00024873,2]
[365291167,1749582642435,-500.0,0.00024873,2]
[365291168,1749582642444,-501.85277261,0.00024873,2]
[365291169,1749582642453,-752597.52882709,0.00024874,20]
[365291258,1749582696088,187.067348,0.00013699,2]
[365292037,1749583558073,529.40777994,0.000189,2]
[365292206,1749583705830,984.36238253,0.00019,2]
[365292339,1749583797815,195.418429,0.00013699,2]
[365292445,1749583832507,-195.418429,0.00020187,2]
[365292446,1749583832516,-184.50229,0.0002034,2]
[365292447,1749583832525,-184.915349,0.00020368,2]
[365292448,1749583832535,-225.6793886,0.0002041,2]
[365292449,1749583832544,-1200.0,0.00020432,2]
[365292450,1749583832555,-300.0,0.00020433,2]
[365292451,1749583832565,-300.0,0.00020433,2]
[365292452,1749583832574,-300.0,0.00020433,2]
[365292453,1749583832583,-16836.242027,0.00020434,2]
[365292454,1749583832592,-302.5010024,0.00020454,2]
[365292455,1749583832602,-6030.70750654,0.00020756,2]
[365292456,1749583832612,-1215.95449955,0.00021,2]
[365292457,1749583832621,-500.0,0.00021038,2]
[365292458,1749583832631,-460.0,0.00021095,4]
[365292459,1749583832641,-460.0,0.00021095,4]
[365292460,1749583832650,-460.0,0.00021095,4]
[365292461,1749583832659,-867.36,0.00021095,4]
[365292462,1749583832668,-586.17,0.00021095,4]
[365292463,1749583832677,-565.4,0.00021095,4]
[365292464,1749583832687,-460.0,0.00021095,4]
[365292465,1749583832697,-460.0,0.00021095,4]
[365292466,1749583832706,-564.71,0.00021095,4]
[365292467,1749583832715,-460.0,0.00021095,4]
[365292468,1749583832724,-460.0,0.00021095,4]
[365292469,1749583832733,-609.78,0.00021095,4]
[365292470,1749583832743,-757.88,0.00021095,4]
[365292471,1749583832753,-460.0,0.00021095,4]
[365292472,1749583832762,-460.0,0.00021095,4]
[365292473,1749583832771,-420.0,0.00021095,4]
[365292474,1749583832781,-460.0,0.00021095,4]
[365292475,1749583832790,-460.0,0.00021095,4]
[365292476,1749583832803,-460.0,0.00021095,4]
[365292477,1749583832813,-460.0,0.00021095,4]
[365292478,1749583832822,-460.0,0.00021095,4]
[365292479,1749583832831,-460.0,0.00021095,4]
[365292480,1749583832843,-460.0,0.00021095,4]
[365292481,1749583832853,-824.21,0.00021239,2]
[365292482,1749583832863,-176.87,0.00021239,2]
[365292483,1749583832873,-185.41738442,0.00021251,2]
[365292484,1749583832883,-384868.2678823,0.0002135,2]
[365292485,1749583832895,-72115.0694777,0.0002135,2]
[365292486,1749583832905,-500.0,0.00021351,4]
[365292487,1749583832914,-460.0,0.00021351,4]
[365292488,1749583832924,-440.0,0.00021351,4]
[365292489,1749583832933,-440.0,0.00021351,4]